[Event "7th Paul Keres Memorial Festival 2026 Classic A"]
[Site "ESTONIA Resort Hotel & Spa conference center, EE"]
[Date "2026.07.27"]
[Round "1"]
[White "Viskelis, Darius"]
[Black "Lagarde, Maxime"]
[Result "0-1"]
[Board "1"]
[TimeControl "5400+30"]
[WhiteFideId "12800830"]
[BlackFideId "662399"]
[WhiteElo "2114"]
[BlackElo "2622"]
[WhiteTitle "FM"]
[BlackTitle "GM"]
[WhiteClock "0:20:10"]
[BlackClock "0:55:13"]
[Variant "Standard"]
[EndDate "2026.07.27"]
[EndTime "15:46:07"]

1. e4 {[%clk 1:30:56]}  g6 {[%clk 1:30:58]} 2. d4 {[%clk 1:30:58]}  Bg7 {[%clk 1:31:23]} 3. Nf3 {[%clk 1:30:41]}  d6 {[%clk 1:31:48]}
4. Nc3 {[%clk 1:28:55]}  a6 {[%clk 1:31:54]} 5. a4 {[%clk 1:29:09]}  Nf6 {[%clk 1:30:18]} 6. Bg5 {[%clk 1:28:24]}  h6 {[%clk 1:28:56]}
7. Be3 {[%clk 1:27:49]}  Ng4 {[%clk 1:27:09]} 8. Bf4 {[%clk 1:27:57]}  Nc6 {[%clk 1:25:55]} 9. h3 {[%clk 1:24:36]}  e5 {[%clk 1:24:57]}
10. dxe5 {[%clk 1:21:16]}  Ngxe5 {[%clk 1:25:20]} 11. Nxe5 {[%clk 1:21:34]}  Nxe5 {[%clk 1:25:26]} 12. Qd2 {[%clk 1:21:18]}  Be6 {[%clk 1:24:01]}
13. Nd5 {[%clk 1:16:49]}  c6 {[%clk 1:21:11]} 14. Ne3 {[%clk 1:16:50]}  d5 {[%clk 1:20:29]} 15. exd5 {[%clk 1:12:59]}  cxd5 {[%clk 1:20:53]}
16. Qb4 {[%clk 1:12:12]}  Qe7 {[%clk 1:17:24]} 17. Qxe7+ {[%clk 1:11:11]}  Kxe7 {[%clk 1:17:32]} 18. O-O-O {[%clk 1:09:45]}  Rhd8 {[%clk 1:17:02]}
19. c3 {[%clk 1:10:04]}  Nc6 {[%clk 1:15:00]} 20. Bc7 {[%clk 1:05:50]}  Rd7 {[%clk 1:11:59]} 21. Bb6 {[%clk 1:06:13]}  d4 {[%clk 1:11:45]}
22. Bc5+ {[%clk 1:04:49]}  Ke8 {[%clk 1:11:47]} 23. Nc4 {[%clk 1:04:58]}  dxc3 {[%clk 1:11:33]} 24. bxc3 {[%clk 0:56:29]}  Rxd1+ {[%clk 1:10:41]}
25. Kxd1 {[%clk 0:56:58]}  Bxc3 {[%clk 1:03:45]} 26. Kc2 {[%clk 0:52:05]}  Bb4 {[%clk 0:58:20]} 27. Bb6 {[%clk 0:32:07]}  Rc8 {[%clk 0:57:08]}
28. Kb2 {[%clk 0:31:25]}  Nb8 {[%clk 0:56:15]} 29. Ba7 {[%clk 0:23:09]}  Nd7 {[%clk 0:55:08]} 30. Nb6 {[%clk 0:23:02]}  Bc3+ {[%clk 0:55:03]}
31. Ka3 {[%clk 0:23:16]}  Nxb6 {[%clk 0:55:07]} 32. Bxb6 {[%clk 0:23:38]}  Be5 {[%clk 0:55:13]} 33. a5 {[%clk 0:20:10]}  Rc2 {[%clk 0:55:13]} 0-1

[Event "7th Paul Keres Memorial Festival 2026 Classic A"]
[Site "ESTONIA Resort Hotel & Spa conference center, EE"]
[Date "2026.07.27"]
[Round "1"]
[White "Kazakouski, Valery"]
[Black "Maddens, Martijn"]
[Result "1-0"]
[Board "2"]
[TimeControl "5400+30"]
[WhiteFideId "13507443"]
[BlackFideId "206962"]
[WhiteElo "2594"]
[BlackElo "2095"]
[WhiteTitle "GM"]
[BlackTitle "CM"]
[WhiteClock "0:56:30"]
[BlackClock "0:00:44"]
[Variant "Standard"]
[EndDate "2026.07.27"]
[EndTime "16:06:25"]

1. d4 {[%clk 1:30:57]}  d5 {[%clk 1:30:52]} 2. c4 {[%clk 1:31:21]}  e6 {[%clk 1:31:16]} 3. Nc3 {[%clk 1:31:44]}  a6 {[%clk 1:31:35]}
4. cxd5 {[%clk 1:31:34]}  exd5 {[%clk 1:31:57]} 5. Bf4 {[%clk 1:31:58]}  Nf6 {[%clk 1:31:41]} 6. e3 {[%clk 1:32:07]}  Bd6 {[%clk 1:31:38]}
7. Bg3 {[%clk 1:31:45]}  O-O {[%clk 1:30:13]} 8. Bd3 {[%clk 1:32:07]}  Bxg3 {[%clk 1:22:18]} 9. hxg3 {[%clk 1:32:26]}  h6 {[%clk 1:22:41]}
10. Nge2 {[%clk 1:31:11]}  Nc6 {[%clk 1:21:48]} 11. f3 {[%clk 1:28:43]}  Re8 {[%clk 1:19:21]} 12. Qd2 {[%clk 1:28:52]}  Qe7 {[%clk 1:12:50]}
13. Kf2 {[%clk 1:28:51]}  Nb4 {[%clk 1:05:52]} 14. Bb1 {[%clk 1:27:10]}  c5 {[%clk 1:05:55]} 15. Nf4 {[%clk 1:21:33]}  Be6 {[%clk 0:51:42]}
16. dxc5 {[%clk 1:16:46]}  Qxc5 {[%clk 0:51:42]} 17. Nce2 {[%clk 1:16:55]}  Nc6 {[%clk 0:46:52]} 18. Rc1 {[%clk 1:10:07]}  Qb6 {[%clk 0:43:19]}
19. Rd1 {[%clk 1:06:37]}  Rac8 {[%clk 0:32:03]} 20. Nd4 {[%clk 1:05:52]}  Nxd4 {[%clk 0:32:19]} 21. Qxd4 {[%clk 1:06:11]}  Qxd4 {[%clk 0:32:06]}
22. Rxd4 {[%clk 1:06:20]}  Rc4 {[%clk 0:25:37]} 23. Rd2 {[%clk 1:06:33]}  Rec8 {[%clk 0:24:33]} 24. Ne2 {[%clk 1:06:45]}  Kf8 {[%clk 0:17:45]}
25. Bd3 {[%clk 1:06:29]}  R4c7 {[%clk 0:18:08]} 26. Rad1 {[%clk 1:06:16]}  Ke7 {[%clk 0:16:03]} 27. Nc3 {[%clk 1:06:02]}  Rd8 {[%clk 0:09:51]}
28. Bc2 {[%clk 1:05:52]}  h5 {[%clk 0:09:41]} 29. e4 {[%clk 1:02:40]}  d4 {[%clk 0:08:58]} 30. a3 {[%clk 0:56:26]}  dxc3 {[%clk 0:05:01]}
31. Rxd8 {[%clk 0:56:49]}  cxb2 {[%clk 0:05:17]} 32. R8d2 {[%clk 0:56:53]}  Nd7 {[%clk 0:01:13]} 33. Bb1 {[%clk 0:55:50]}  Rc1 {[%clk 0:01:38]}
34. Re1 {[%clk 0:56:05]}  Nc5 {[%clk 0:00:49]} 35. Rxb2 {[%clk 0:56:19]}  Rc3 {[%clk 0:00:44]} 36. Re3 {[%clk 0:56:30]} 1-0

[Event "7th Paul Keres Memorial Festival 2026 Classic A"]
[Site "ESTONIA Resort Hotel & Spa conference center, EE"]
[Date "2026.07.27"]
[Round "1"]
[White "Jakubowska, Anna"]
[Black "Zeng, Chongsheng"]
[Result "0-1"]
[Board "3"]
[TimeControl "5400+30"]
[WhiteFideId "1121952"]
[BlackFideId "8603847"]
[WhiteElo "2088"]
[BlackElo "2565"]
[WhiteTitle "WIM"]
[BlackTitle "GM"]
[WhiteClock "0:06:55"]
[BlackClock "0:09:04"]
[Variant "Standard"]
[EndDate "2026.07.27"]
[EndTime "16:46:40"]

1. e4 {[%clk 1:30:57]}  c5 {[%clk 1:30:24]} 2. d3 {[%clk 1:31:11]}  Nc6 {[%clk 1:30:31]} 3. g3 {[%clk 1:31:31]}  g6 {[%clk 1:30:31]}
4. Bg2 {[%clk 1:31:47]}  Bg7 {[%clk 1:30:55]} 5. Nc3 {[%clk 1:30:56]}  d6 {[%clk 1:31:06]} 6. Nh3 {[%clk 1:30:00]}  Rb8 {[%clk 1:30:27]}
7. O-O {[%clk 1:29:26]}  b5 {[%clk 1:30:15]} 8. f4 {[%clk 1:27:46]}  Nd4 {[%clk 1:29:26]} 9. Nd5 {[%clk 1:25:35]}  e6 {[%clk 1:13:06]}
10. Ne3 {[%clk 1:25:49]}  b4 {[%clk 1:13:14]} 11. Bd2 {[%clk 1:09:13]}  Nb5 {[%clk 1:07:10]} 12. Rb1 {[%clk 0:57:50]}  Ne7 {[%clk 1:07:14]}
13. f5 {[%clk 0:52:00]}  exf5 {[%clk 1:04:46]} 14. exf5 {[%clk 0:52:25]}  Nxf5 {[%clk 0:56:38]} 15. Bc6+ {[%clk 0:52:08]}  Kf8 {[%clk 0:56:40]}
16. Nxf5 {[%clk 0:48:01]}  Bxf5 {[%clk 0:56:32]} 17. Ng5 {[%clk 0:47:08]}  Qc8 {[%clk 0:37:17]} 18. Bd5 {[%clk 0:42:16]}  Nc7 {[%clk 0:34:53]}
19. Bxf7 {[%clk 0:37:35]}  Bd4+ {[%clk 0:34:32]} 20. Kh1 {[%clk 0:33:41]}  Kg7 {[%clk 0:34:31]} 21. Bb3 {[%clk 0:30:31]}  Rf8 {[%clk 0:31:59]}
22. Qf3 {[%clk 0:26:34]}  Qd7 {[%clk 0:30:49]} 23. Bf4 {[%clk 0:21:50]}  h6 {[%clk 0:28:40]} 24. Ne4 {[%clk 0:21:56]}  Bg4 {[%clk 0:25:27]}
25. Qg2 {[%clk 0:22:05]}  Bh3 {[%clk 0:22:31]} 26. Qd2 {[%clk 0:22:31]}  g5 {[%clk 0:19:54]} 27. c3 {[%clk 0:14:28]}  bxc3 {[%clk 0:18:43]}
28. bxc3 {[%clk 0:14:39]}  Bxf1 {[%clk 0:13:08]} 29. Bxd6 {[%clk 0:10:47]}  Rf3 {[%clk 0:11:11]} 30. cxd4 {[%clk 0:10:40]}  Bxd3 {[%clk 0:10:31]}
31. Be5+ {[%clk 0:09:42]}  Kg6 {[%clk 0:10:06]} 32. Re1 {[%clk 0:08:23]}  Qf5 {[%clk 0:09:53]} 33. Nd6 {[%clk 0:06:02]}  Rf1+ {[%clk 0:10:00]}
34. Kg2 {[%clk 0:06:28]}  Qf3+ {[%clk 0:10:17]} 35. Kh3 {[%clk 0:06:53]}  Rxb3 {[%clk 0:08:43]} 36. axb3 {[%clk 0:06:55]}  Rxe1 {[%clk 0:09:04]} 0-1

[Event "7th Paul Keres Memorial Festival 2026 Classic A"]
[Site "ESTONIA Resort Hotel & Spa conference center, EE"]
[Date "2026.07.27"]
[Round "1"]
[White "Harikrishnan.A.Ra"]
[Black "Troselj, Ivan"]
[Result "1/2-1/2"]
[Board "4"]
[TimeControl "5400+30"]
[WhiteFideId "5081483"]
[BlackFideId "14538377"]
[WhiteElo "2519"]
[BlackElo "2082"]
[WhiteTitle "GM"]
[WhiteClock "0:00:44"]
[BlackClock "0:13:54"]
[Variant "Standard"]
[EndDate "2026.07.27"]
[EndTime "17:07:43"]

1. Nf3 {[%clk 1:30:57]}  Nf6 {[%clk 1:30:52]} 2. g3 {[%clk 1:31:22]}  d5 {[%clk 1:31:02]} 3. Bg2 {[%clk 1:31:50]}  e6 {[%clk 1:30:53]}
4. O-O {[%clk 1:32:13]}  Be7 {[%clk 1:31:03]} 5. c4 {[%clk 1:32:38]}  O-O {[%clk 1:31:06]} 6. d4 {[%clk 1:33:03]}  dxc4 {[%clk 1:31:30]}
7. Qc2 {[%clk 1:33:29]}  a6 {[%clk 1:31:43]} 8. a4 {[%clk 1:33:54]}  Bd7 {[%clk 1:31:58]} 9. Qxc4 {[%clk 1:34:22]}  Bc6 {[%clk 1:32:12]}
10. Bg5 {[%clk 1:34:45]}  Bd5 {[%clk 1:29:42]} 11. Qc2 {[%clk 1:35:07]}  Be4 {[%clk 1:29:53]} 12. Qc1 {[%clk 1:35:30]}  Nc6 {[%clk 1:27:44]}
13. Nbd2 {[%clk 1:35:41]}  Bxf3 {[%clk 1:27:37]} 14. Nxf3 {[%clk 1:36:08]}  a5 {[%clk 1:26:28]} 15. e3 {[%clk 1:35:46]}  Nb4 {[%clk 1:25:41]}
16. Rd1 {[%clk 1:34:09]}  c6 {[%clk 1:25:48]} 17. h4 {[%clk 1:32:48]}  Nfd5 {[%clk 1:23:25]} 18. e4 {[%clk 1:31:18]}  Bxg5 {[%clk 1:21:56]}
19. hxg5 {[%clk 1:30:43]}  Nb6 {[%clk 1:18:49]} 20. Qf4 {[%clk 1:27:07]}  Qe7 {[%clk 1:15:46]} 21. b3 {[%clk 1:19:28]}  Rfd8 {[%clk 1:12:46]}
22. Rac1 {[%clk 1:17:06]}  Nd7 {[%clk 1:08:54]} 23. Bh3 {[%clk 1:13:55]}  Nf8 {[%clk 1:05:39]} 24. Ne5 {[%clk 1:12:49]}  Ng6 {[%clk 1:05:49]}
25. Nxg6 {[%clk 1:13:11]}  hxg6 {[%clk 1:05:58]} 26. Kg2 {[%clk 1:08:39]}  e5 {[%clk 1:02:53]} 27. Qxe5 {[%clk 0:59:30]}  Qxe5 {[%clk 1:03:15]}
28. dxe5 {[%clk 0:59:57]}  Nd3 {[%clk 1:03:31]} 29. Rb1 {[%clk 1:00:19]}  Nxe5 {[%clk 1:03:19]} 30. f4 {[%clk 0:49:59]}  Nd3 {[%clk 1:03:39]}
31. Kf3 {[%clk 0:49:28]}  Nc5 {[%clk 1:02:14]} 32. e5 {[%clk 0:40:14]}  Rxd1 {[%clk 0:56:43]} 33. Rxd1 {[%clk 0:40:43]}  Nxb3 {[%clk 0:57:04]}
34. e6 {[%clk 0:40:32]}  Re8 {[%clk 0:54:23]} 35. Rd7 {[%clk 0:40:48]}  fxe6 {[%clk 0:54:35]} 36. Rxb7 {[%clk 0:41:12]}  Nd4+ {[%clk 0:49:14]}
37. Ke4 {[%clk 0:39:53]}  Nf5 {[%clk 0:48:19]} 38. Ra7 {[%clk 0:38:29]}  Nxg3+ {[%clk 0:39:51]} 39. Ke5 {[%clk 0:38:10]}  Nf5 {[%clk 0:39:35]}
40. Rxa5 {[%clk 0:38:24]}  Re7 {[%clk 0:39:42]} 41. Rc5 {[%clk 0:17:22]}  Kf7 {[%clk 0:37:35]} 42. a5 {[%clk 0:15:28]}  Rd7 {[%clk 0:36:56]}
43. a6 {[%clk 0:14:10]}  Ke7 {[%clk 0:31:19]} 44. Bxf5 {[%clk 0:13:10]}  gxf5 {[%clk 0:31:30]} 45. Ra5 {[%clk 0:07:18]}  Ra7 {[%clk 0:31:49]}
46. Kd4 {[%clk 0:07:44]}  Kd6 {[%clk 0:32:07]} 47. g6 {[%clk 0:07:52]}  c5+ {[%clk 0:22:11]} 48. Kc4 {[%clk 0:08:20]}  e5 {[%clk 0:22:26]}
49. fxe5+ {[%clk 0:07:33]}  Kxe5 {[%clk 0:22:52]} 50. Rxc5+ {[%clk 0:05:36]}  Kd6 {[%clk 0:19:25]} 51. Ra5 {[%clk 0:06:05]}  Kc6 {[%clk 0:18:17]}
52. Ra1 {[%clk 0:04:28]}  f4 {[%clk 0:17:24]} 53. Kd4 {[%clk 0:03:21]}  Kd6 {[%clk 0:17:49]} 54. Ra4 {[%clk 0:00:56]}  f3 {[%clk 0:17:15]}
55. Ra1 {[%clk 0:00:34]}  f2 {[%clk 0:17:25]} 56. Ke3 {[%clk 0:00:44]}  f1=Q {[%clk 0:13:54]} 57. Ke4 {[%clk 0:00:38]} 1/2-1/2

[Event "7th Paul Keres Memorial Festival 2026 Classic A"]
[Site "ESTONIA Resort Hotel & Spa conference center, EE"]
[Date "2026.07.27"]
[Round "1"]
[White "Dijokas, Jokubas"]
[Black "Laurusas, Tomas"]
[Result "0-1"]
[Board "5"]
[TimeControl "5400+30"]
[WhiteFideId "12840653"]
[BlackFideId "12803731"]
[WhiteElo "2077"]
[BlackElo "2511"]
[BlackTitle "GM"]
[WhiteClock "0:02:28"]
[BlackClock "0:04:56"]
[Variant "Standard"]
[EndDate "2026.07.27"]
[EndTime "17:36:21"]

1. d4 {[%clk 1:30:51]}  Nf6 {[%clk 1:30:53]} 2. c4 {[%clk 1:31:16]}  e6 {[%clk 1:31:17]} 3. Nf3 {[%clk 1:31:26]}  b6 {[%clk 1:31:40]}
4. g3 {[%clk 1:31:17]}  Bb7 {[%clk 1:31:14]} 5. Bg2 {[%clk 1:29:22]}  Bb4+ {[%clk 1:30:54]} 6. Bd2 {[%clk 1:28:57]}  c5 {[%clk 1:31:18]}
7. O-O {[%clk 1:24:35]}  O-O {[%clk 1:31:38]} 8. Bxb4 {[%clk 1:15:35]}  cxb4 {[%clk 1:32:06]} 9. Nbd2 {[%clk 1:15:06]}  d6 {[%clk 1:22:28]}
10. Ne1 {[%clk 0:59:54]}  Bxg2 {[%clk 1:18:01]} 11. Kxg2 {[%clk 1:00:09]}  a5 {[%clk 1:16:16]} 12. Nd3 {[%clk 0:53:36]}  Re8 {[%clk 1:10:34]}
13. e3 {[%clk 0:46:46]}  e5 {[%clk 1:09:47]} 14. b3 {[%clk 0:42:10]}  Nc6 {[%clk 0:59:40]} 15. d5 {[%clk 0:41:30]}  Nb8 {[%clk 1:00:09]}
16. e4 {[%clk 0:39:41]}  Na6 {[%clk 1:00:29]} 17. Qe2 {[%clk 0:36:48]}  Nd7 {[%clk 1:00:19]} 18. f4 {[%clk 0:33:25]}  exf4 {[%clk 0:55:26]}
19. Rxf4 {[%clk 0:33:04]}  Nac5 {[%clk 0:54:21]} 20. Raf1 {[%clk 0:22:53]}  Ra7 {[%clk 0:44:12]} 21. Nxc5 {[%clk 0:16:22]}  Nxc5 {[%clk 0:43:24]}
22. Qh5 {[%clk 0:12:29]}  Re5 {[%clk 0:39:42]} 23. Qh3 {[%clk 0:11:28]}  h6 {[%clk 0:37:26]} 24. Nf3 {[%clk 0:08:20]}  Rxe4 {[%clk 0:36:28]}
25. Rxe4 {[%clk 0:08:13]}  Nxe4 {[%clk 0:36:56]} 26. Nd4 {[%clk 0:08:09]}  Ng5 {[%clk 0:29:33]} 27. Qg4 {[%clk 0:05:05]}  Qe8 {[%clk 0:29:15]}
28. Nf5 {[%clk 0:04:01]}  Qe4+ {[%clk 0:16:56]} 29. Qxe4 {[%clk 0:04:26]}  Nxe4 {[%clk 0:17:24]} 30. Re1 {[%clk 0:04:39]}  Nc3 {[%clk 0:17:52]}
31. Re8+ {[%clk 0:03:52]}  Kh7 {[%clk 0:18:16]} 32. Nxd6 {[%clk 0:04:04]}  Nxa2 {[%clk 0:12:29]} 33. Nc8 {[%clk 0:01:38]}  Rb7 {[%clk 0:12:17]}
34. d6 {[%clk 0:01:36]}  a4 {[%clk 0:12:44]} 35. bxa4 {[%clk 0:01:19]}  b3 {[%clk 0:13:05]} 36. Re2 {[%clk 0:01:34]}  Rd7 {[%clk 0:12:08]}
37. Rb2 {[%clk 0:01:24]}  Rd8 {[%clk 0:12:32]} 38. Nxb6 {[%clk 0:01:19]}  Rxd6 {[%clk 0:13:01]} 39. Rxb3 {[%clk 0:01:31]}  Nc1 {[%clk 0:12:03]}
40. Rb5 {[%clk 0:01:06]}  Rd2+ {[%clk 0:11:26]} 41. Kf3 {[%clk 0:00:51]}  Rxh2 {[%clk 0:11:55]} 42. a5 {[%clk 0:00:42]}  Ne2 {[%clk 0:11:57]}
43. Ke3 {[%clk 0:00:34]}  Nxg3 {[%clk 0:12:19]} 44. Na4 {[%clk 0:00:34]}  Ra2 {[%clk 0:12:33]} 45. Nc3 {[%clk 0:00:39]}  Ra3 {[%clk 0:12:48]}
46. Kd4 {[%clk 0:00:34]}  h5 {[%clk 0:12:15]} 47. c5 {[%clk 0:00:39]}  Nf5+ {[%clk 0:12:44]} 48. Ke5 {[%clk 0:00:01]}  Kg6 {[%clk 0:06:19]}
49. Nb1 {[%clk 0:00:34]}  Re3+ {[%clk 0:06:43]} 50. Kf4 {[%clk 0:00:32]}  Re8 {[%clk 0:03:31]} 51. Nd2 {[%clk 0:00:35]}  Nd4 {[%clk 0:03:35]}
52. Rb6+ {[%clk 0:00:49]}  f6 {[%clk 0:04:02]} 53. Ne4 {[%clk 0:00:34]}  h4 {[%clk 0:04:18]} 54. Rb4 {[%clk 0:00:32]}  Ne6+ {[%clk 0:03:28]}
55. Kf3 {[%clk 0:00:55]}  Ra8 {[%clk 0:03:02]} 56. Ra4 {[%clk 0:00:44]}  f5 {[%clk 0:03:05]} 57. Nd6 {[%clk 0:00:38]}  Nxc5 {[%clk 0:03:24]}
58. Rxh4 {[%clk 0:00:46]}  Rxa5 {[%clk 0:03:48]} 59. Nc4 {[%clk 0:00:36]}  Ra1 {[%clk 0:03:34]} 60. Ne3 {[%clk 0:00:41]}  Ra3 {[%clk 0:03:52]}
61. Rc4 {[%clk 0:00:32]}  Ne6 {[%clk 0:03:33]} 62. Rc6 {[%clk 0:00:53]}  Kf6 {[%clk 0:03:45]} 63. Kf2 {[%clk 0:01:08]}  Ra2+ {[%clk 0:04:11]}
64. Kf3 {[%clk 0:01:16]}  Ra3 {[%clk 0:04:02]} 65. Kf2 {[%clk 0:01:38]}  f4 {[%clk 0:03:47]} 66. Nc2 {[%clk 0:00:54]}  Ra2 {[%clk 0:03:54]}
67. Kf1 {[%clk 0:00:50]}  Kf5 {[%clk 0:04:13]} 68. Nb4 {[%clk 0:01:10]}  Rd2 {[%clk 0:04:15]} 69. Rc3 {[%clk 0:01:19]}  Ke4 {[%clk 0:04:28]}
70. Nc2 {[%clk 0:01:38]}  g5 {[%clk 0:04:28]} 71. Ke1 {[%clk 0:01:28]}  Rh2 {[%clk 0:04:38]} 72. Kf1 {[%clk 0:01:51]}  Rh1+ {[%clk 0:03:52]}
73. Kf2 {[%clk 0:01:46]}  Rc1 {[%clk 0:04:00]} 74. Rc6 {[%clk 0:01:56]}  Ke5 {[%clk 0:03:56]} 75. Kg2 {[%clk 0:01:47]}  g4 {[%clk 0:04:14]}
76. Kf2 {[%clk 0:02:12]}  Rh1 {[%clk 0:04:30]} 77. Kg2 {[%clk 0:02:28]}  Rd1 {[%clk 0:04:56]} 0-1

[Event "7th Paul Keres Memorial Festival 2026 Classic A"]
[Site "ESTONIA Resort Hotel & Spa conference center, EE"]
[Date "2026.07.27"]
[Round "1"]
[White "Juodziukynas, Aidas"]
[Black "Jakubowski, Krzysztof"]
[Result "0-1"]
[Board "7"]
[TimeControl "5400+30"]
[WhiteFideId "1562398"]
[BlackFideId "1112848"]
[WhiteElo "2064"]
[BlackElo "2424"]
[BlackTitle "GM"]
[WhiteClock "0:03:20"]
[BlackClock "0:08:00"]
[Variant "Standard"]
[EndDate "2026.07.27"]
[EndTime "16:49:05"]

1. d4 {[%clk 1:30:46]}  Nf6 {[%clk 1:30:48]} 2. c4 {[%clk 1:30:57]}  e6 {[%clk 1:31:05]} 3. Nf3 {[%clk 1:31:04]}  b6 {[%clk 1:31:22]}
4. a3 {[%clk 1:31:20]}  Bb7 {[%clk 1:29:57]} 5. Nc3 {[%clk 1:30:09]}  d5 {[%clk 1:30:06]} 6. cxd5 {[%clk 1:27:46]}  Nxd5 {[%clk 1:29:57]}
7. Qc2 {[%clk 1:24:44]}  Be7 {[%clk 1:28:18]} 8. e4 {[%clk 1:22:31]}  Nxc3 {[%clk 1:28:38]} 9. bxc3 {[%clk 1:22:52]}  O-O {[%clk 1:28:48]}
10. Bd3 {[%clk 1:19:26]}  c5 {[%clk 1:26:14]} 11. O-O {[%clk 1:16:31]}  Qc7 {[%clk 1:23:59]} 12. Qe2 {[%clk 1:11:04]}  Nd7 {[%clk 1:23:33]}
13. a4 {[%clk 1:05:27]}  Rfd8 {[%clk 1:16:56]} 14. d5 {[%clk 0:50:07]}  exd5 {[%clk 0:58:31]} 15. exd5 {[%clk 0:45:58]}  Bf6 {[%clk 0:56:53]}
16. Bg5 {[%clk 0:37:29]}  Bxd5 {[%clk 0:54:23]} 17. Rad1 {[%clk 0:36:10]}  Bxf3 {[%clk 0:34:21]} 18. Qxf3 {[%clk 0:35:34]}  Bxg5 {[%clk 0:34:33]}
19. Qf5 {[%clk 0:35:26]}  Ne5 {[%clk 0:18:14]} 20. Qxh7+ {[%clk 0:32:04]}  Kf8 {[%clk 0:18:40]} 21. Rfe1 {[%clk 0:31:02]}  Bf6 {[%clk 0:16:02]}
22. f4 {[%clk 0:25:09]}  Ng6 {[%clk 0:16:13]} 23. h4 {[%clk 0:20:54]}  c4 {[%clk 0:11:40]} 24. h5 {[%clk 0:19:21]}  cxd3 {[%clk 0:10:59]}
25. hxg6 {[%clk 0:19:26]}  fxg6 {[%clk 0:11:25]} 26. Qxg6 {[%clk 0:13:41]}  Qxc3 {[%clk 0:11:28]} 27. Qh7 {[%clk 0:11:38]}  Qd4+ {[%clk 0:09:03]}
28. Kh1 {[%clk 0:11:17]}  d2 {[%clk 0:07:55]} 29. Re4 {[%clk 0:07:32]}  Qd5 {[%clk 0:08:15]} 30. Re3 {[%clk 0:06:36]}  Kf7 {[%clk 0:06:49]}
31. Rh3 {[%clk 0:02:43]}  Rh8 {[%clk 0:07:08]} 32. Qxh8 {[%clk 0:03:10]}  Rxh8 {[%clk 0:07:34]} 33. Rxh8 {[%clk 0:03:20]}  Qd3 {[%clk 0:08:00]} 0-1

[Event "7th Paul Keres Memorial Festival 2026 Classic A"]
[Site "ESTONIA Resort Hotel & Spa conference center, EE"]
[Date "2026.07.27"]
[Round "1"]
[White "Ostensen, Nicolai Maxime"]
[Black "Krustkalns, Kristaps"]
[Result "1-0"]
[Board "8"]
[TimeControl "5400+30"]
[WhiteFideId "1546970"]
[BlackFideId "11602686"]
[WhiteElo "2407"]
[BlackElo "2062"]
[WhiteTitle "FM"]
[BlackTitle "FM"]
[WhiteClock "1:00:20"]
[BlackClock "0:21:54"]
[Variant "Standard"]
[EndDate "2026.07.27"]
[EndTime "15:42:45"]

1. e4 {[%clk 1:30:56]}  e5 {[%clk 1:30:50]} 2. Nf3 {[%clk 1:31:18]}  Nc6 {[%clk 1:31:05]} 3. Bb5 {[%clk 1:31:37]}  a6 {[%clk 1:31:21]}
4. Ba4 {[%clk 1:32:00]}  Nf6 {[%clk 1:31:37]} 5. d3 {[%clk 1:32:22]}  d6 {[%clk 1:31:30]} 6. c3 {[%clk 1:32:43]}  g6 {[%clk 1:31:27]}
7. O-O {[%clk 1:33:03]}  Bg7 {[%clk 1:31:34]} 8. Re1 {[%clk 1:33:26]}  O-O {[%clk 1:30:57]} 9. Nbd2 {[%clk 1:33:52]}  b5 {[%clk 1:30:18]}
10. Bc2 {[%clk 1:34:18]}  d5 {[%clk 1:28:04]} 11. a4 {[%clk 1:31:42]}  Rb8 {[%clk 1:24:58]} 12. axb5 {[%clk 1:31:29]}  axb5 {[%clk 1:25:14]}
13. h3 {[%clk 1:30:17]}  h6 {[%clk 1:24:21]} 14. Nf1 {[%clk 1:24:15]}  Nh5 {[%clk 1:18:20]} 15. Bb3 {[%clk 1:18:51]}  dxe4 {[%clk 1:14:45]}
16. dxe4 {[%clk 1:18:52]}  Qf6 {[%clk 1:14:12]} 17. Ne3 {[%clk 1:16:39]}  Ne7 {[%clk 1:13:41]} 18. Ng4 {[%clk 1:14:17]}  Bxg4 {[%clk 1:13:12]}
19. hxg4 {[%clk 1:14:40]}  Rfd8 {[%clk 1:12:34]} 20. Qc2 {[%clk 1:12:24]}  Nf4 {[%clk 1:11:44]} 21. Be3 {[%clk 1:08:42]}  Qc6 {[%clk 1:00:49]}
22. Red1 {[%clk 1:07:51]}  Rd7 {[%clk 0:56:06]} 23. g3 {[%clk 1:07:25]}  Ne6 {[%clk 0:52:43]} 24. Rxd7 {[%clk 1:05:05]}  Qxd7 {[%clk 0:53:05]}
25. Ra6 {[%clk 1:05:01]}  Qc8 {[%clk 0:51:06]} 26. Ra7 {[%clk 1:03:05]}  Nc6 {[%clk 0:45:04]} 27. Ra1 {[%clk 1:02:13]}  Nf4 {[%clk 0:44:01]}
28. Nh2 {[%clk 1:02:03]}  Ne6 {[%clk 0:42:34]} 29. Qd2 {[%clk 1:01:50]}  Kh7 {[%clk 0:40:55]} 30. Nf3 {[%clk 1:01:56]}  Ned8 {[%clk 0:32:07]}
31. Kg2 {[%clk 1:01:04]}  Qxg4 {[%clk 0:27:47]} 32. Bxh6 {[%clk 0:58:34]}  Bxh6 {[%clk 0:26:35]} 33. Rh1 {[%clk 0:59:00]}  g5 {[%clk 0:26:37]}
34. Nxg5+ {[%clk 0:59:13]}  Kg7 {[%clk 0:22:48]} 35. Rxh6 {[%clk 0:59:37]}  f6 {[%clk 0:22:56]} 36. Nf3 {[%clk 0:59:40]}  Nf7 {[%clk 0:21:42]}
37. Bxf7 {[%clk 0:59:48]}  Kxf7 {[%clk 0:22:06]} 38. Rh7+ {[%clk 1:00:11]}  Kg8 {[%clk 0:21:54]} 39. Rxc7 {[%clk 1:00:20]} 1-0